[Event "Božićni turnir u VaraždinskimToplicama 26.12.2025."]
[Site "Varazdinske Toplice, Croatia"]
[Date "2025.12.26"]
[Round "8.10"]
[White "Bedekovic, Jakov"]
[Black "Brnadic, Grga"]
[Result "*"]
[TimeControl "10"]
[WhiteFideId "14596458"]
[BlackFideId "14578999"]
[WhiteElo "1965"]
[BlackElo "1387"]

1. e4 {[%clk 00:10:00]} c5 {[%clk 00:10:00]} {[%emt 00:00:02]} 2. f4 {[%clk
00:09:58]} g6 {[%clk 00:09:44]} {[%emt 00:00:16]} 3. Nf3 {[%clk 00:09:55]}
{[%emt 00:00:02]} Nc6 {[%clk 00:09:41]} {[%emt 00:00:04]} 4. Bb5 {[%clk
00:09:54]} Nd4 {[%clk 00:09:40]} 5. Nxd4 {[%clk 00:09:53]} {[%emt 00:00:01]}
cxd4 {[%clk 00:09:39]} 6. c4 {[%clk 00:09:52]} {[%emt 00:00:01]} Bg7 {[%clk
00:09:27]} {[%emt 00:00:12]} 7. O-O {[%clk 00:09:48]} {[%emt 00:00:05]} a6
{[%clk 00:09:18]} {[%emt 00:00:08]} 8. Ba4 {[%clk 00:09:46]} {[%emt 00:00:02]}
e6 {[%clk 00:09:07]} {[%emt 00:00:11]} 9. d3 {[%clk 00:09:44]} {[%emt
00:00:02]} Ne7 {[%clk 00:08:56]} {[%emt 00:00:11]} 10. Nd2 {[%clk 00:09:05]}
{[%emt 00:00:39]} O-O {[%clk 00:08:51]} {[%emt 00:00:05]} 11. Nf3 {[%clk
00:09:03]} {[%emt 00:00:02]} Rb8 {[%clk 00:08:47]} {[%emt 00:00:03]} 12. Qe1
{[%clk 00:08:54]} {[%emt 00:00:09]} b5 {[%clk 00:08:44]} {[%emt 00:00:04]} 13.
cxb5 {[%clk 00:08:53]} {[%emt 00:00:01]} axb5 {[%clk 00:08:43]} 14. Bb3 {[%clk
00:08:51]} {[%emt 00:00:02]} Nc6 {[%clk 00:08:42]} {[%emt 00:00:01]} 15. f5
{[%clk 00:08:39]} {[%emt 00:00:12]} Ne5 {[%clk 00:08:37]} {[%emt 00:00:05]} 16.
Nxe5 {[%clk 00:08:32]} {[%emt 00:00:08]} Bxe5 {[%clk 00:08:36]} {[%emt
00:00:01]} 17. Bg5 {[%clk 00:08:08]} {[%emt 00:00:23]} Qc7 {[%clk 00:08:24]}
{[%emt 00:00:13]} 18. Qh4 {[%clk 00:07:48]} {[%emt 00:00:20]} Bg7 {[%clk
00:08:02]} {[%emt 00:00:22]} 19. f6 {[%clk 00:07:42]} {[%emt 00:00:05]} Bh8
{[%clk 00:08:00]} {[%emt 00:00:02]} 20. Rf3 {[%clk 00:07:36]} {[%emt 00:00:07]}
h5 {[%clk 00:07:59]} {[%emt 00:00:01]} 21. g4 {[%clk 00:07:30]} {[%emt
00:00:06]} hxg4 {[%clk 00:07:17]} {[%emt 00:00:41]} 22. Qxg4 {[%clk 00:07:20]}
{[%emt 00:00:10]} d6 {[%clk 00:07:16]} {[%emt 00:00:03]} 23. Qh4 {[%clk
00:07:02]} {[%emt 00:00:17]} e5 {[%clk 00:07:15]} 24. Qh6 {[%clk 00:06:57]}
{[%emt 00:00:04]} Qd7 {[%clk 00:07:06]} {[%emt 00:00:10]} 25. Qxg6+ {[%clk
00:06:53]} {[%emt 00:00:03]} *

[Event "Božićni turnir u VaraždinskimToplicama 26.12.2025."]
[Site "Varazdinske Toplice, Croatia"]
[Date "2025.12.26"]
[Round "8.11"]
[White "Gombosi, Svit"]
[Black "Sardi, Darko"]
[Result "*"]
[TimeControl "10"]
[WhiteFideId "14656582"]
[BlackFideId "14511100"]
[WhiteElo "1442"]
[BlackElo "1905"]

1. e4 {[%clk 00:09:58]} {[%emt 00:00:01]} Nf6 {[%clk 00:09:59]} {[%emt
00:00:02]} 2. Nc3 {[%clk 00:09:53]} {[%emt 00:00:05]} d5 {[%clk 00:09:58]}
{[%emt 00:00:01]} 3. exd5 Nxd5 {[%clk 00:09:56]} 4. Bc4 {[%clk 00:09:39]}
{[%emt 00:00:11]} e6 {[%clk 00:09:48]} {[%emt 00:00:10]} 5. Qe2 {[%clk
00:09:19]} {[%emt 00:00:18]} Nb6 {[%clk 00:09:45]} {[%emt 00:00:04]} 6. Bb3
{[%clk 00:09:15]} {[%emt 00:00:04]} Nc6 {[%clk 00:09:42]} {[%emt 00:00:02]} 7.
Nf3 {[%clk 00:09:04]} {[%emt 00:00:11]} Be7 {[%clk 00:09:41]} {[%emt 00:00:01]}
8. O-O {[%clk 00:08:58]} {[%emt 00:00:06]} a5 {[%clk 00:09:37]} {[%emt
00:00:04]} 9. Na4 {[%clk 00:08:29]} {[%emt 00:00:29]} Nd5 {[%clk 00:09:28]}
{[%emt 00:00:08]} 10. Nc3 {[%clk 00:08:20]} {[%emt 00:00:10]} Nf4 {[%clk
00:08:56]} {[%emt 00:00:32]} 11. Qe4 {[%clk 00:08:02]} {[%emt 00:00:15]} Ng6
{[%clk 00:08:54]} {[%emt 00:00:05]} 12. d4 {[%clk 00:07:56]} {[%emt 00:00:06]}
O-O {[%clk 00:08:51]} {[%emt 00:00:03]} 13. d5 {[%clk 00:07:49]} {[%emt
00:00:08]} exd5 {[%clk 00:08:35]} {[%emt 00:00:15]} 14. Bxd5 {[%clk 00:07:35]}
{[%emt 00:00:14]} Nb4 {[%clk 00:08:26]} {[%emt 00:00:09]} 15. Bb3 {[%clk
00:07:19]} {[%emt 00:00:16]} c6 {[%clk 00:08:08]} {[%emt 00:00:19]} 16. Ne5
{[%clk 00:06:55]} {[%emt 00:00:23]} Nxe5 {[%clk 00:08:05]} {[%emt 00:00:03]} 17.
Qxe5 {[%clk 00:06:51]} {[%emt 00:00:03]} Bf6 {[%clk 00:08:04]} {[%emt
00:00:01]} 18. Qe3 {[%clk 00:06:41]} {[%emt 00:00:09]} Qd4 {[%clk 00:07:31]}
{[%emt 00:00:35]} 19. Qxd4 {[%clk 00:06:31]} {[%emt 00:00:11]} Bxd4 {[%clk
00:07:30]} {[%emt 00:00:01]} 20. Bd2 {[%clk 00:06:26]} {[%emt 00:00:04]} b5
{[%clk 00:07:19]} {[%emt 00:00:11]} 21. a3 {[%clk 00:06:22]} {[%emt 00:00:04]}
Na6 {[%clk 00:07:14]} {[%emt 00:00:04]} 22. Be3 {[%clk 00:06:04]} {[%emt
00:00:18]} Bf6 {[%clk 00:07:04]} {[%emt 00:00:11]} 23. Rfd1 {[%clk 00:05:37]}
{[%emt 00:00:26]} Bf5 {[%clk 00:06:58]} {[%emt 00:00:07]} 24. Rd6 {[%clk
00:05:19]} {[%emt 00:00:18]} Rac8 {[%clk 00:06:56]} {[%emt 00:00:02]} 25. Nxb5
{[%clk 00:04:49]} {[%emt 00:00:30]} Bxb2 {[%clk 00:06:43]} {[%emt 00:00:13]} 26.
Rb1 {[%clk 00:04:38]} {[%emt 00:00:11]} Be5 {[%clk 00:06:41]} {[%emt 00:00:02]}
27. Bf4 {[%clk 00:03:51]} {[%emt 00:00:47]} Bxf4 {[%clk 00:06:36]} {[%emt
00:00:05]} 28. Nd4 {[%clk 00:03:26]} {[%emt 00:00:22]} Bxd6 {[%clk 00:06:30]}
{[%emt 00:00:09]} 29. Nxf5 {[%clk 00:03:24]} {[%emt 00:00:03]} Bc5 {[%clk
00:06:24]} {[%emt 00:00:06]} 30. Bc4 {[%clk 00:03:14]} {[%emt 00:00:09]} Ra8
{[%clk 00:06:11]} {[%emt 00:00:13]} 31. a4 {[%clk 00:03:00]} {[%emt 00:00:14]}
g6 {[%clk 00:06:10]} {[%emt 00:00:01]} 32. Nh4 {[%clk 00:02:49]} {[%emt
00:00:10]} Nb4 {[%clk 00:06:03]} {[%emt 00:00:08]} 33. c3 {[%clk 00:02:42]}
{[%emt 00:00:08]} Nd5 {[%clk 00:06:01]} {[%emt 00:00:01]} 34. Bxd5 {[%clk
00:02:31]} {[%emt 00:00:11]} cxd5 {[%clk 00:06:00]} {[%emt 00:00:01]} 35. Rb5
{[%clk 00:02:28]} {[%emt 00:00:03]} Rfc8 {[%clk 00:05:58]} {[%emt 00:00:02]} 36.
g3 {[%clk 00:02:22]} {[%emt 00:00:06]} d4 {[%clk 00:05:56]} {[%emt 00:00:02]}
37. cxd4 {[%clk 00:02:16]} {[%emt 00:00:07]} Bxd4 {[%clk 00:05:54]} {[%emt
00:00:01]} 38. Nf3 {[%clk 00:02:13]} {[%emt 00:00:03]} Bc3 {[%clk 00:05:45]}
{[%emt 00:00:09]} 39. Rb7 {[%clk 00:02:08]} {[%emt 00:00:05]} Rab8 {[%clk
00:05:41]} {[%emt 00:00:03]} 40. Re7 {[%clk 00:02:01]} {[%emt 00:00:05]} h6
{[%clk 00:05:24]} {[%emt 00:00:19]} 41. Rd7 {[%clk 00:01:53]} {[%emt 00:00:09]}
Rb4 {[%clk 00:05:21]} {[%emt 00:00:03]} 42. h4 {[%clk 00:01:45]} {[%emt
00:00:08]} Rxa4 {[%clk 00:05:15]} {[%emt 00:00:07]} 43. Kg2 {[%clk 00:01:30]}
{[%emt 00:00:14]} Ra2 {[%clk 00:05:13]} {[%emt 00:00:02]} 44. g4 {[%clk
00:01:26]} {[%emt 00:00:04]} a4 {[%clk 00:05:07]} {[%emt 00:00:07]} 45. g5
{[%clk 00:01:11]} {[%emt 00:00:14]} h5 {[%clk 00:05:05]} {[%emt 00:00:03]} *

[Event "Božićni turnir u VaraždinskimToplicama 26.12.2025."]
[Site "Varazdinske Toplice, Croatia"]
[Date "2025.12.26"]
[Round "8.15"]
[White "Marcec, Tomislav"]
[Black "Obad, Damir"]
[Result "*"]
[TimeControl "10"]
[WhiteFideId "79316719"]
[BlackFideId "14514532"]
[WhiteElo "1691"]
[BlackElo "1999"]

1. c4 {[%clk 00:09:59]} {[%emt 00:00:01]} Nf6 {[%clk 00:09:58]} {[%emt
00:00:02]} 2. d4 {[%clk 00:09:58]} {[%emt 00:00:03]} d6 {[%clk 00:09:57]} 3.
Nc3 {[%clk 00:09:57]} g6 {[%clk 00:09:53]} {[%emt 00:00:03]} 4. e4 {[%clk
00:09:55]} {[%emt 00:00:03]} Bg7 {[%clk 00:09:52]} 5. Bg5 {[%clk 00:09:52]}
{[%emt 00:00:03]} c6 {[%clk 00:09:45]} {[%emt 00:00:08]} 6. Nf3 {[%clk
00:09:46]} {[%emt 00:00:05]} O-O {[%clk 00:09:38]} {[%emt 00:00:07]} 7. Qd2
{[%clk 00:09:33]} {[%emt 00:00:14]} Bg4 {[%clk 00:09:10]} {[%emt 00:00:27]} 8.
Bh6 {[%clk 00:09:27]} {[%emt 00:00:06]} Bxf3 {[%clk 00:09:01]} {[%emt
00:00:09]} 9. gxf3 {[%clk 00:09:25]} {[%emt 00:00:02]} e5 {[%clk 00:08:49]}
{[%emt 00:00:12]} 10. d5 {[%clk 00:09:11]} {[%emt 00:00:14]} cxd5 {[%clk
00:08:39]} {[%emt 00:00:10]} 11. Bxg7 {[%clk 00:08:40]} {[%emt 00:00:31]} Kxg7
{[%clk 00:08:38]} {[%emt 00:00:01]} 12. Nxd5 {[%clk 00:08:15]} {[%emt
00:00:26]} Nxd5 {[%clk 00:08:36]} {[%emt 00:00:02]} 13. cxd5 {[%clk 00:08:03]}
{[%emt 00:00:11]} Nd7 {[%clk 00:08:34]} {[%emt 00:00:01]} 14. f4 {[%clk
00:07:35]} {[%emt 00:00:28]} Nc5 {[%clk 00:08:29]} {[%emt 00:00:05]} 15. Bd3
{[%clk 00:07:06]} {[%emt 00:00:29]} Nxd3+ {[%clk 00:08:23]} {[%emt 00:00:06]}
16. Qxd3 {[%clk 00:07:05]} {[%emt 00:00:01]} exf4 {[%clk 00:08:19]} {[%emt
00:00:04]} 17. h4 {[%clk 00:06:50]} {[%emt 00:00:15]} h5 {[%clk 00:08:15]}
{[%emt 00:00:04]} 18. Ke2 {[%clk 00:06:05]} {[%emt 00:00:46]} Rc8 {[%clk
00:08:05]} {[%emt 00:00:09]} 19. Rag1 {[%clk 00:05:16]} {[%emt 00:00:49]} Qf6
{[%clk 00:07:57]} {[%emt 00:00:07]} 20. Qd2 {[%clk 00:04:49]} {[%emt 00:00:28]}
f3+ {[%clk 00:07:44]} {[%emt 00:00:13]} 21. Ke3 {[%clk 00:04:35]} {[%emt
00:00:14]} Rfe8 {[%clk 00:07:08]} {[%emt 00:00:35]} 22. Rg3 {[%clk 00:04:17]}
{[%emt 00:00:19]} Rc4 {[%clk 00:06:52]} {[%emt 00:00:15]} 23. Qd3 {[%clk
00:03:17]} {[%emt 00:01:01]} Rec8 {[%clk 00:06:18]} {[%emt 00:00:33]} 24. Rxf3
{[%clk 00:03:02]} {[%emt 00:00:16]} Qxb2 {[%clk 00:06:15]} {[%emt 00:00:03]} 25.
Qd2 {[%clk 00:01:38]} {[%emt 00:01:24]} Rc3+ {[%clk 00:06:13]} {[%emt
00:00:02]} 26. Ke2 {[%clk 00:01:01]} {[%emt 00:00:37]} Qxd2+ {[%clk 00:06:08]}
{[%emt 00:00:05]} 27. Rxf7+ {[%clk 00:00:53]} {[%emt 00:00:09]} Kxf7+ {[%clk
00:06:05]} {[%emt 00:00:02]} 28. Kxd2 {[%clk 00:00:52]} Rc2+ {[%clk 00:06:00]}
{[%emt 00:00:05]} 29. Ke3 {[%clk 00:00:51]} {[%emt 00:00:01]} R8c3+ {[%clk
00:05:48]} {[%emt 00:00:13]} 30. Kf4 {[%clk 00:00:49]} {[%emt 00:00:02]} Rxf2+
{[%clk 00:05:45]} {[%emt 00:00:02]} 31. Kg5 {[%clk 00:00:43]} {[%emt 00:00:07]}
Kg7 {[%clk 00:05:42]} {[%emt 00:00:03]} 32. Rg1 {[%clk 00:00:26]} {[%emt
00:00:17]} Rc4 {[%clk 00:05:36]} {[%emt 00:00:05]} 33. Re1 {[%clk 00:00:15]}
{[%emt 00:00:11]} Rc3 {[%clk 00:05:35]} {[%emt 00:00:02]} 34. Rg1 {[%clk
00:00:12]} {[%emt 00:00:03]} Re3 {[%clk 00:05:34]} 35. Rb1 {[%clk 00:00:00]}
{[%emt 00:00:26]} b6 {[%clk 00:05:26]} {[%emt 00:00:08]} 36. Rc1 {[%clk
00:00:00]} {[%emt 00:00:02]} Rxe4 {[%clk 00:05:22]} {[%emt 00:00:04]} 37. Rc7+
{[%clk 00:00:00]} {[%emt 00:00:02]} Rf7 {[%clk 00:05:21]} {[%emt 00:00:01]} 38.
Rxf7+ {[%clk 00:00:00]} {[%emt 00:00:05]} Kxf7 {[%clk 00:05:20]} 39. Kh6 {[%clk
00:00:00]} {[%emt 00:00:01]} Kf6 {[%clk 00:05:15]} {[%emt 00:00:05]} 40. Kh7
{[%clk 00:00:00]} {[%emt 00:00:03]} Rxh4 {[%clk 00:05:10]} {[%emt 00:00:05]} 41.
Kg8 {[%clk 00:00:00]} {[%emt 00:00:03]} g5 {[%clk 00:05:06]} {[%emt 00:00:04]}
42. Kh7 {[%clk 00:00:00]} {[%emt 00:00:02]} Rc4 {[%clk 00:05:02]} {[%emt
00:00:03]} 43. Kh6 {[%clk 00:00:00]} {[%emt 00:00:01]} *

[Event "Božićni turnir u VaraždinskimToplicama 26.12.2025."]
[Site "Varazdinske Toplice, Croatia"]
[Date "2025.12.26"]
[Round "9.1"]
[White "Vidovic, Sasa"]
[Black "Radic, Goran"]
[Result "1-0"]
[TimeControl "10"]
[WhiteFideId "14505010"]
[BlackFideId "14533995"]
[WhiteElo "2202"]
[BlackElo "2051"]

1. b3 {[%clk 00:09:58]} {[%emt 00:00:02]} d6 {[%clk 00:09:57]} {[%emt
00:00:04]} 2. Bb2 {[%clk 00:09:57]} {[%emt 00:00:01]} e5 {[%clk 00:09:55]}
{[%emt 00:00:01]} 3. d4 {[%clk 00:09:56]} {[%emt 00:00:02]} Nd7 {[%clk
00:09:49]} {[%emt 00:00:06]} 4. e4 {[%clk 00:09:45]} {[%emt 00:00:11]} c6
{[%clk 00:09:43]} {[%emt 00:00:06]} 5. Nf3 {[%clk 00:09:41]} {[%emt 00:00:04]}
Qc7 {[%clk 00:09:43]} 6. Nc3 {[%clk 00:09:33]} {[%emt 00:00:08]} Ngf6 {[%clk
00:09:41]} {[%emt 00:00:02]} 7. Bd3 {[%clk 00:09:19]} {[%emt 00:00:14]} Be7
{[%clk 00:09:39]} {[%emt 00:00:02]} 8. O-O {[%clk 00:09:18]} {[%emt 00:00:01]}
O-O {[%clk 00:09:37]} {[%emt 00:00:02]} 9. Re1 {[%clk 00:08:56]} {[%emt
00:00:23]} b5 {[%clk 00:09:34]} {[%emt 00:00:02]} 10. a4 {[%clk 00:08:47]}
{[%emt 00:00:09]} b4 {[%clk 00:09:33]} 11. Ne2 {[%clk 00:08:46]} {[%emt
00:00:02]} a5 {[%clk 00:09:32]} {[%emt 00:00:01]} 12. Ng3 {[%clk 00:08:39]}
{[%emt 00:00:06]} Re8 {[%clk 00:09:30]} {[%emt 00:00:02]} 13. Qd2 {[%clk
00:08:18]} {[%emt 00:00:21]} c5 {[%clk 00:09:18]} {[%emt 00:00:13]} 14. dxe5
{[%clk 00:08:05]} {[%emt 00:00:13]} Nxe5 {[%clk 00:09:11]} {[%emt 00:00:07]} 15.
Bxe5 {[%clk 00:07:30]} {[%emt 00:00:35]} dxe5 {[%clk 00:09:10]} {[%emt
00:00:01]} 16. Bc4 {[%clk 00:07:29]} {[%emt 00:00:02]} Bf8 {[%clk 00:08:29]}
{[%emt 00:00:40]} 17. Ng5 {[%clk 00:07:19]} {[%emt 00:00:10]} Re7 {[%clk
00:08:28]} {[%emt 00:00:01]} 18. Qe2 {[%clk 00:07:06]} {[%emt 00:00:14]} h6
{[%clk 00:08:22]} {[%emt 00:00:05]} 19. Nf3 {[%clk 00:07:05]} Be6 {[%clk
00:08:19]} {[%emt 00:00:04]} 20. Bxe6 {[%clk 00:07:00]} {[%emt 00:00:05]} Rxe6
{[%clk 00:08:18]} {[%emt 00:00:01]} 21. Nd2 {[%clk 00:06:54]} {[%emt 00:00:06]}
Ne8 {[%clk 00:08:13]} {[%emt 00:00:05]} 22. Nf5 {[%clk 00:06:47]} {[%emt
00:00:07]} Rd8 {[%clk 00:08:02]} {[%emt 00:00:10]} 23. Nc4 {[%clk 00:06:45]}
{[%emt 00:00:02]} g6 {[%clk 00:07:27]} {[%emt 00:00:35]} 24. Nfe3 {[%clk
00:06:45]} Nd6 {[%clk 00:07:19]} {[%emt 00:00:08]} 25. Nd5 {[%clk 00:06:29]}
{[%emt 00:00:16]} Qa7 {[%clk 00:07:18]} 26. Rad1 {[%clk 00:06:14]} {[%emt
00:00:15]} Nxc4 {[%clk 00:06:53]} {[%emt 00:00:25]} 27. Qxc4 {[%clk 00:06:12]}
{[%emt 00:00:01]} Kg7 {[%clk 00:06:52]} 28. Rd3 {[%clk 00:05:46]} {[%emt
00:00:27]} Qb7 {[%clk 00:06:45]} {[%emt 00:00:06]} 29. Red1 {[%clk 00:05:40]}
{[%emt 00:00:07]} Red6 {[%clk 00:06:35]} {[%emt 00:00:09]} 30. g3 {[%clk
00:05:32]} {[%emt 00:00:08]} h5 {[%clk 00:06:26]} {[%emt 00:00:09]} 31. Kg2
{[%clk 00:05:30]} {[%emt 00:00:03]} h4 {[%clk 00:06:23]} {[%emt 00:00:03]} 32.
f3 {[%clk 00:05:30]} {[%emt 00:00:01]} Qc8 {[%clk 00:06:14]} {[%emt 00:00:08]}
33. R1d2 {[%clk 00:04:59]} {[%emt 00:00:31]} h3+ {[%clk 00:06:12]} {[%emt
00:00:01]} 34. Kf2 {[%emt 00:00:03]} Qb7 {[%clk 00:06:02]} {[%emt 00:00:08]} 35.
Rd1 {[%clk 00:04:55]} {[%emt 00:00:04]} Qc8 {[%clk 00:05:47]} {[%emt 00:00:15]}
36. R3d2 {[%clk 00:04:38]} {[%emt 00:00:16]} Be7 {[%clk 00:05:37]} {[%emt
00:00:10]} 37. Rd3 {[%clk 00:04:25]} {[%emt 00:00:13]} Bf8 {[%clk 00:05:29]}
{[%emt 00:00:08]} 38. Ke2 {[%clk 00:04:22]} {[%emt 00:00:04]} Qb7 {[%clk
00:05:22]} {[%emt 00:00:06]} 39. R1d2 {[%clk 00:04:18]} {[%emt 00:00:05]} Kh8
{[%clk 00:05:17]} {[%emt 00:00:04]} 40. Kd1 {[%clk 00:04:15]} {[%emt 00:00:05]}
Bh6 {[%clk 00:05:14]} {[%emt 00:00:01]} 41. Re2 {[%clk 00:04:13]} {[%emt
00:00:02]} f5 {[%clk 00:05:05]} {[%emt 00:00:10]} 42. c3 {[%clk 00:03:57]}
{[%emt 00:00:16]} Qf7 {[%clk 00:05:02]} {[%emt 00:00:01]} 43. Kc2 {[%clk
00:03:51]} {[%emt 00:00:07]} fxe4 {[%clk 00:04:57]} {[%emt 00:00:05]} 44. fxe4
{[%clk 00:03:50]} {[%emt 00:00:01]} Qf1 {[%clk 00:04:55]} {[%emt 00:00:03]} 45.
Rd1 {[%clk 00:03:44]} {[%emt 00:00:06]} Qf3 {[%clk 00:04:43]} {[%emt 00:00:09]}
46. Qd3 {[%clk 00:03:42]} {[%emt 00:00:05]} Qg4 {[%clk 00:04:31]} {[%emt
00:00:12]} 47. Rf1 {[%clk 00:03:35]} {[%emt 00:00:07]} bxc3 {[%clk 00:04:23]}
{[%emt 00:00:07]} 48. Qf3 {[%clk 00:03:27]} {[%emt 00:00:09]} Qxf3 {[%clk
00:04:07]} {[%emt 00:00:16]} 49. Rxf3 {[%clk 00:03:26]} Bd2 {[%clk 00:04:05]}
{[%emt 00:00:01]} 50. Rf7 {[%clk 00:02:57]} {[%emt 00:00:29]} R8d7 {[%clk
00:03:58]} {[%emt 00:00:07]} 51. Ref2 {[%clk 00:02:42]} {[%emt 00:00:16]} Rxf7
{[%clk 00:03:32]} {[%emt 00:00:27]} 52. Rxf7 {[%clk 00:02:41]} {[%emt
00:00:01]} Kg8 {[%clk 00:03:31]} 53. Ra7 {[%emt 00:00:12]} c4 {[%clk 00:03:26]}
{[%emt 00:00:04]} 54. bxc4 {[%clk 00:02:23]} {[%emt 00:00:06]} 1-0

[Event "Božićni turnir u VaraždinskimToplicama 26.12.2025."]
[Site "Varazdinske Toplice, Croatia"]
[Date "2025.12.26"]
[Round "9.2"]
[White "Petrus, Adrian"]
[Black "Sagovac, Kristijan"]
[Result "1-0"]
[TimeControl "10"]
[WhiteFideId "14573652"]
[BlackFideId "14542960"]
[WhiteElo "1636"]
[BlackElo "2014"]

1. e4 c5 2. Nf3 {[%clk 00:09:58]} Nc6 {[%clk 00:10:00]} 3. Bb5 {[%clk
00:09:55]} {[%emt 00:00:04]} e5 {[%clk 00:09:59]} 4. O-O {[%clk 00:09:49]}
{[%emt 00:00:05]} Bd6 {[%clk 00:09:58]} {[%emt 00:00:01]} 5. Re1 {[%emt
00:00:08]} a6 6. Bf1 {[%clk 00:09:39]} {[%emt 00:00:01]} Nge7 {[%clk 00:09:52]}
{[%emt 00:00:06]} 7. c3 {[%clk 00:09:35]} {[%emt 00:00:04]} Ng6 {[%clk
00:09:48]} {[%emt 00:00:05]} 8. d4 {[%clk 00:09:05]} {[%emt 00:00:29]} Qc7
{[%clk 00:09:47]} 9. d5 {[%clk 00:08:55]} {[%emt 00:00:11]} Nce7 {[%clk
00:09:29]} {[%emt 00:00:17]} 10. a4 {[%clk 00:08:54]} O-O {[%clk 00:09:22]}
{[%emt 00:00:07]} 11. Na3 {[%clk 00:08:44]} {[%emt 00:00:10]} b6 {[%clk
00:09:08]} {[%emt 00:00:14]} 12. Nc4 {[%clk 00:08:43]} {[%emt 00:00:01]} Bb7
{[%clk 00:09:04]} {[%emt 00:00:04]} 13. Ne3 {[%clk 00:08:17]} {[%emt 00:00:26]}
f5 {[%clk 00:08:52]} {[%emt 00:00:12]} 14. exf5 {[%clk 00:08:06]} {[%emt
00:00:11]} Nxf5 {[%clk 00:08:50]} {[%emt 00:00:02]} 15. Nxf5 {[%clk 00:07:49]}
{[%emt 00:00:18]} Rxf5 {[%clk 00:08:49]} 16. Bd3 {[%clk 00:07:48]} Rf7 {[%clk
00:08:10]} {[%emt 00:00:37]} 17. Bxg6 {[%clk 00:07:21]} {[%emt 00:00:29]} hxg6
{[%clk 00:08:10]} {[%emt 00:00:01]} 18. Re4 {[%clk 00:07:18]} {[%emt 00:00:02]}
Raf8 {[%clk 00:07:56]} {[%emt 00:00:14]} 19. c4 {[%emt 00:00:22]} b5 {[%clk
00:07:40]} {[%emt 00:00:15]} 20. axb5 {[%clk 00:06:41]} {[%emt 00:00:16]} axb5
{[%clk 00:07:39]} {[%emt 00:00:01]} 21. b3 {[%clk 00:06:41]} Qb6 {[%clk
00:06:56]} {[%emt 00:00:44]} 22. Be3 {[%clk 00:06:36]} {[%emt 00:00:04]} bxc4
{[%clk 00:06:28]} {[%emt 00:00:28]} 23. bxc4 {[%clk 00:06:34]} {[%emt
00:00:03]} Bc7 {[%clk 00:03:46]} {[%emt 00:02:41]} 24. Rb1 {[%clk 00:05:54]}
{[%emt 00:00:40]} Qa7 {[%clk 00:03:46]} {[%emt 00:00:01]} 25. Ng5 {[%clk
00:05:12]} {[%emt 00:00:42]} Rf6 {[%clk 00:03:26]} {[%emt 00:00:19]} 26. Qg4
{[%clk 00:04:48]} {[%emt 00:00:24]} Qa2 {[%clk 00:03:02]} {[%emt 00:00:24]} 27.
Rf1 {[%clk 00:04:45]} {[%emt 00:00:03]} Rf5 {[%clk 00:02:08]} {[%emt 00:00:55]}
28. Qh4 {[%clk 00:04:38]} {[%emt 00:00:07]} Rxg5 {[%clk 00:01:54]} {[%emt
00:00:14]} 29. Qxg5 {[%clk 00:04:22]} {[%emt 00:00:15]} Rf6 {[%clk 00:01:38]}
{[%emt 00:00:16]} 30. Qg4 {[%clk 00:04:16]} {[%emt 00:00:07]} Bc8 {[%clk
00:01:29]} {[%emt 00:00:09]} 31. Bg5 {[%clk 00:04:01]} {[%emt 00:00:14]} Rf5
{[%clk 00:01:20]} {[%emt 00:00:09]} 32. Be7 {[%clk 00:03:41]} {[%emt 00:00:20]}
Qa6 {[%clk 00:01:19]} {[%emt 00:00:02]} 33. d6 {[%clk 00:03:06]} {[%emt
00:00:34]} Bxd6 {[%clk 00:01:18]} {[%emt 00:00:01]} 34. Qxg6 {[%clk 00:02:34]}
{[%emt 00:00:32]} Bxe7 {[%clk 00:01:17]} {[%emt 00:00:02]} 35. Qxf5 {[%clk
00:02:33]} d5 {[%clk 00:01:16]} 36. Qxe5 {[%clk 00:02:32]} dxe4 {[%clk
00:01:09]} {[%emt 00:00:07]} 37. Qxe7 {[%clk 00:02:30]} {[%emt 00:00:02]} Qc6
{[%clk 00:01:03]} {[%emt 00:00:06]} 38. Qe5 {[%clk 00:02:22]} {[%emt 00:00:08]}
Be6 {[%clk 00:00:57]} {[%emt 00:00:06]} 39. Re1 {[%clk 00:02:18]} {[%emt
00:00:05]} Bxc4 {[%clk 00:00:56]} {[%emt 00:00:01]} 40. Qxe4 {[%clk 00:02:11]}
{[%emt 00:00:06]} Qa6 {[%clk 00:00:49]} {[%emt 00:00:07]} 41. Rc1 {[%clk
00:02:05]} {[%emt 00:00:06]} Bd3 {[%clk 00:00:43]} {[%emt 00:00:06]} 42. Qd5+
{[%clk 00:02:02]} {[%emt 00:00:02]} Kh8 {[%clk 00:00:40]} {[%emt 00:00:04]} 43.
Qh5+ {[%clk 00:01:58]} {[%emt 00:00:03]} Kg8 {[%clk 00:00:38]} {[%emt
00:00:03]} 44. Qxc5 {[%clk 00:01:57]} {[%emt 00:00:02]} Qh6 {[%clk 00:00:29]}
{[%emt 00:00:09]} 45. Qe3 {[%clk 00:01:49]} {[%emt 00:00:07]} Qa6 {[%clk
00:00:19]} {[%emt 00:00:10]} 46. h3 {[%emt 00:00:05]} 1-0